fUST/lending_fUST_20240213
["ID","MTS","AMOUNT","RATE_DAILY","PERIOD"]
[313918009,1707823832633,-399.03818136,0.0003098,2]
[313918366,1707823839059,-1250.11279398,0.0003098,2]
[313918367,1707823839074,-111.69894142,0.0003098,2]
[313918368,1707823839084,-1157.33283631,0.00031672,2]
[313918375,1707823839434,-4277.50720339,0.00031672,2]
[313918376,1707823839444,-777.0,0.00031757,2]
[313918377,1707823839453,-927.85609052,0.00032799,4]
[313918378,1707823839463,-377.464031,0.00032799,4]
[313918379,1707823839472,-150.87929656,0.000328,4]
[313918380,1707823839481,-401.76035495,0.0003298,2]
[313918381,1707823839490,-150.0,0.00033,14]
[313918382,1707823839500,-3003.86360604,0.00033,2]
[313918413,1707823841880,-280.89703445,0.00033,2]
[313918415,1707823841890,-166.0,0.00033,2]
[313918417,1707823841900,-153.0,0.00033,2]
[313918418,1707823841909,-1516.21673772,0.00033,2]
[313918421,1707823841921,-779.52614367,0.00033,2]
[313918423,1707823841932,-260.659322,0.00033,2]
[313918643,1707823843662,-809.59779661,0.00033,2]
[313918647,1707823843671,-197.0,0.00033,2]
[313918650,1707823843681,-154.87609912,0.00033,4]
[313918653,1707823843690,-154.0,0.00033,2]
[313918656,1707823843699,-1114.25679546,0.00033043,2]
[313918659,1707823843710,-1276.2070171,0.0003307,2]
[313918662,1707823843719,-380.41109485,0.0003308,2]
[313918700,1707823843931,-175.06391585,0.0003308,2]
[313918701,1707823843941,-1044.82681773,0.00033083,7]
[313919847,1707823855438,276.82742723,0.0002836,2]
[313920202,1707823859167,10353.90087305,0.0002836,2]
[313920647,1707823863664,1871.63113989,0.00028359,2]
[313922188,1707824470315,267.948303,0.00020503,2]
[313922189,1707824514342,712.3733127,0.0002035,2]
[313922190,1707824556239,133319.6783843,0.0002035,2]
[313922191,1707824556265,108261.0757711,0.0002035,2]
[313922192,1707824561491,344.3493647,0.0002035,2]
[313922193,1707824571023,684.73525288,0.0002035,2]
[313922194,1707824575513,346.96649954,0.0002035,2]
[313922195,1707824589025,684.73525288,0.0002035,2]
[313922196,1707824591488,344.3493647,0.0002035,2]
[313922197,1707824607391,399.0724157,0.00020117,2]
[313922198,1707824613023,684.73525288,0.0002035,2]
[313922199,1707824613508,344.3493647,0.0002035,2]
[313922200,1707824629634,623.07798176,0.0002035,2]
[313922201,1707824631516,344.3493647,0.0002035,2]
[313922202,1707824633025,684.73525288,0.0002035,2]
[313922203,1707824634748,590.62215999,0.00020349,2]
[313922204,1707824635139,679.17505343,0.00020349,2]
[313922205,1707824635410,294.82619206,0.00020349,2]
[313922206,1707824645641,623.07798176,0.0002035,2]
[313922207,1707824649184,684.73525288,0.0002035,2]
[313922208,1707824649504,344.3493647,0.0002035,2]
[313922209,1707824663646,705.72322962,0.0002035,2]
[313922210,1707824667042,684.73525288,0.0002035,2]
[313922211,1707824669516,189.99372784,0.0002035,2]
[313922212,1707824671223,24900.0,0.00020097,2]
[313922213,1707824684475,1040.8718319,0.00020092,2]
[313922214,1707824684540,237.31322869,0.000207,2]
[313922215,1707824685058,684.73525288,0.0002035,2]
[313922216,1707824703069,684.73525288,0.0002035,2]
[313922217,1707824727062,719.1345012,0.0002035,2]
[313922218,1707824733119,-212.79441474,0.00020992,2]
[313922219,1707824733139,-652.1152959,0.00020992,2]
[313922220,1707824733157,-154.87609912,0.00020992,2]
[313922221,1707824733179,-324.05064247,0.00020992,2]
[313922222,1707824733197,-7989.76732382,0.00020992,2]
[313922223,1707824733216,-2608.46910477,0.00020993,2]
[313922224,1707824733235,-20950.86004502,0.00020993,2]
[313922225,1707824733255,-175.87607828,0.00020994,2]
[313922226,1707824733275,-1963.02059646,0.00020994,2]
[313922227,1707824733295,-280.94108593,0.00020994,2]
[313922228,1707824733313,-247.46530507,0.00020994,2]
[313922229,1707824733332,-537.82724361,0.00020995,2]
[313922230,1707824733351,-296.0451629,0.00020995,2]
[313922231,1707824733371,-161.66447433,0.00020995,2]
[313922232,1707824733389,-154.87609912,0.00020996,2]
[313922233,1707824733409,-273.45700158,0.00020996,2]
[313922234,1707824733429,-474.93513227,0.00020997,2]
[313922235,1707824733450,-3850.17863966,0.00021072,3]
[313922237,1707824825112,-500.0,0.00020885,2]
[313922238,1707824825136,-563.70112892,0.00020885,2]
[313922239,1707824825159,-154.87609912,0.00020886,2]
[313922240,1707824825183,-1949.02119926,0.00020886,2]
[313922241,1707824825206,-5502.34410082,0.00020886,2]
[313922242,1707824885165,577.5312465,0.00020157,2]
[313922243,1707824920263,1128.6034029,0.0002009,2]
[313922244,1707824924610,206.80328279,0.00020682,2]
[313922245,1707824947090,-535.94317616,0.00020777,2]
[313922246,1707824947117,-3552.45362534,0.00020777,2]
[313922247,1707824947139,-2824.93961185,0.00020778,2]
[313922248,1707824947161,-718.7552593,0.00020778,2]
[313922249,1707824947182,-485.79395602,0.00020778,2]
[313922250,1707824954100,-4797.16350404,0.00020778,2]
[313922251,1707824954124,-3333.29446079,0.00020779,2]
[313922252,1707824954145,-1588.23318982,0.00020779,2]
[313922253,1707824954166,-163.22943243,0.00020779,2]
[313922254,1707824954188,-154.87609912,0.0002078,2]
[313922255,1707824954209,-214.26436809,0.0002078,2]
[313922256,1707824954230,-907.14192831,0.0002078,2]
[313922257,1707824954251,-690.59003309,0.0002078,2]
[313922258,1707824954286,-18973.76143666,0.0002078,2]
[313922259,1707824954312,-164.22477025,0.00020785,2]
[313922260,1707824954334,-19938.19043779,0.00021651,2]
[313922261,1707824954358,-3147.1731739,0.00021652,2]
[313922262,1707824954382,-200.0,0.00022043,7]
[313922263,1707824954407,-609.79632971,0.00023473,2]
[313922264,1707824954429,-280.0,0.00024247,7]
[313922265,1707824954453,-474.93513223,0.00024523,2]
[313922266,1707824954475,-19571.5354211,0.00025989,2]
[313922267,1707824954498,-391.0,0.00026672,15]
[313922268,1707824954518,-474.93513223,0.00028049,2]
[313922269,1707824954539,-4386.71,0.00028347,3]
[313922270,1707824954559,-309.75213633,0.00028355,2]
[313922271,1707824954580,-6843.28826641,0.00028357,2]
[313922277,1707824957112,-10484.60955497,0.00028357,2]
[313922278,1707824957133,-402.50917676,0.0002836,2]
[313922279,1707824957153,-191.47322048,0.0002836,2]
[313922280,1707824962117,-12.24432813,0.0002836,2]
[313922281,1707824962138,-200.0,0.00029339,15]
[313922282,1707824962158,-348.0,0.00029339,15]
[313922283,1707824962179,-1173.89994451,0.00029572,2]
[313922315,1707825031742,-367.40863936,0.00030752,4]
[313922316,1707825031752,-377.464031,0.00030752,4]
[313922317,1707825031762,-217.20754709,0.00030753,4]
[313922318,1707825031771,-500.0,0.00031573,4]
[313922319,1707825031781,-181.11122538,0.00031573,4]
[313922320,1707825031791,-474.93513223,0.00031574,2]
[313922321,1707825031801,-267.948303,0.00031621,2]
[313922322,1707825031811,-150.87929656,0.00031917,2]
[313922323,1707825031820,-999.69354747,0.00032438,2]
[313922324,1707825031831,-1823.15288158,0.00032458,2]
[313922325,1707825031841,-927.85609052,0.00032998,4]
[313922326,1707825031851,-965.69804513,0.00032999,4]
[313922327,1707825031860,-4772.97032196,0.00032999,4]
[313922328,1707825031870,-153.0,0.00033,2]
[313922329,1707825031880,-3580.0,0.00033,2]
[313922330,1707825031890,-155.0,0.00033,2]
[313922331,1707825031899,-154.87609912,0.00033049,4]
[313922332,1707825031909,-981.34824706,0.0003305,2]
[313922333,1707825031918,-8365.16,0.0003313,3]
[313922334,1707825031930,-6970.97,0.0003313,3]
[313922335,1707825031938,-3580.0,0.00033151,2]
[313922336,1707825031947,-250.0,0.00033184,5]
[313922337,1707825031958,-500.0,0.00033184,7]
[313922338,1707825031968,-500.0,0.00033184,7]
[313922339,1707825031979,-500.0,0.00033184,7]
[313922340,1707825031989,-500.0,0.00033184,7]
[313922341,1707825032000,-520.21789515,0.00033184,7]
[313922342,1707825032010,-451.64096867,0.00033184,7]
[313922343,1707825032019,-130991.64388189,0.00033185,7]
[313922404,1707825040271,-7098.02345881,0.00032999,2]
[313922406,1707825040282,-11588.65511811,0.00033185,7]
[313922407,1707825040291,-3580.0,0.00033425,2]
[313922408,1707825040300,-3580.0,0.00033699,2]
[313922409,1707825040311,-500.0,0.00033732,5]
[313922410,1707825040321,-3580.0,0.00033973,2]
[313922411,1707825040331,-154.0555174,0.00034219,2]
[313922412,1707825040342,-153.0,0.00034219,2]
[313922413,1707825040352,-153.0,0.00034219,2]
[313922414,1707825040361,-153.0,0.00034219,2]
[313922415,1707825040371,-153.0,0.00034219,2]
[313922416,1707825040380,-153.0,0.00034219,2]
[313922417,1707825040389,-313.1663701,0.00034219,2]
[313922418,1707825040398,-3580.0,0.00034247,2]
[313922419,1707825040407,-750.0,0.0003428,5]
[313922420,1707825040417,-287.96855968,0.000344,30]
[313922421,1707825040426,-8150.66087794,0.00034519,4]
[313922422,1707825040436,-3580.0,0.00034521,2]
[313922423,1707825040445,-1173.89994451,0.00034572,2]
[313922424,1707825040455,-155.0,0.00034616,2]
[313922425,1707825040464,-200.1465056,0.00034681,2]
[313922426,1707825040474,-153.0,0.00034681,2]
[313922427,1707825040483,-307.596951,0.00034681,2]
[313922428,1707825040493,-153.7868715,0.00034681,2]
[313922429,1707825040503,-200.1465056,0.00034681,2]
[313922430,1707825040513,-200.1465056,0.00034681,2]
[313922431,1707825040522,-199.7297436,0.00034681,2]
[313922432,1707825040531,-1000.0,0.00034828,5]
[313922433,1707825040541,-1813.87652904,0.00034831,4]
[313922434,1707825040550,-168.91309946,0.00034999,15]
[313922435,1707825040560,-1533.16044773,0.00035,4]
[313922436,1707825040569,-2363.36602346,0.00035,2]
[313922437,1707825040578,-500.13137461,0.00035,7]
[313922438,1707825040587,-3933.83541145,0.00035,2]
[313922439,1707825040596,-10188.56654547,0.00035,2]
[313922440,1707825040606,-1000.0,0.00035,35]
[313922441,1707825040616,-3902.85254909,0.00035,3]
[313922442,1707825040625,-157.95400104,0.00035,2]
[313922443,1707825040635,-154.87609912,0.00035,6]
[313922444,1707825040644,-847.02589561,0.00035078,2]
[313922445,1707825040656,-2460.47002701,0.00035082,4]
[313922446,1707825040665,-254.62525398,0.00035082,4]
[313922447,1707825040674,-27992.32103487,0.00035083,4]
[313922448,1707825040684,-474.93513223,0.000351,2]
[313922449,1707825040693,-155.09094064,0.0003516,4]
[313922450,1707825040703,-155.30958796,0.0003516,4]
[313922451,1707825040712,-256.22157654,0.0003516,4]
[313922452,1707825040722,-427.63934733,0.0003516,4]
[313922453,1707825040732,-770.48214614,0.0003516,4]
[313922454,1707825040741,-154.93802479,0.00035161,4]
[313922455,1707825040750,-261.22503123,0.00035161,4]
[313922456,1707825040759,-262.41474753,0.00035183,4]
[313922457,1707825040769,-175.19728346,0.00035183,4]
[313922458,1707825040778,-539.19664772,0.00035183,4]
[313922459,1707825040787,-212.61306538,0.00035183,4]
[313922460,1707825040796,-1826.9603488,0.00035183,4]
[313922461,1707825040805,-353.07188966,0.00035183,4]
[313922462,1707825040815,-868.01224366,0.00035183,4]
[313922463,1707825040825,-155.80728857,0.00035183,4]
[313922464,1707825040835,-212.82571171,0.00035183,4]
[313922465,1707825040845,-1893.06959706,0.00035183,4]
[313922466,1707825040855,-661.43387756,0.00035183,4]
[313922467,1707825040864,-535.644987,0.00035183,4]
[313922468,1707825040873,-2821.34888369,0.00035183,4]
[313922469,1707825040883,-220.4797371,0.00035183,4]
[313922471,1707825040893,-19847.76391395,0.00035183,4]
[313922473,1707825040902,-238.33145777,0.00035183,4]
[313922475,1707825040911,-1589.15273925,0.00035183,4]
[313922476,1707825040920,-4361.74159245,0.00035183,4]
[313922479,1707825040930,-155.34758793,0.00035183,4]
[313922480,1707825040940,-540.64481469,0.00035183,4]
[313922482,1707825040950,-323.25976255,0.00035184,4]
[313922484,1707825040959,-313.87846336,0.00035184,4]
[313922486,1707825040969,-676.79051147,0.00035184,2]
[313922488,1707825040978,-22676.17480278,0.00035184,4]
[313922490,1707825040988,-289651.6565,0.00035185,30]
[313922492,1707825040997,-157.95400096,0.00035192,2]
[313922495,1707825041007,-300.0,0.00035373,3]
[313922497,1707825041016,-1250.0,0.00035376,5]
[313922498,1707825041026,-157.95400096,0.00035383,2]
[313922500,1707825041035,-8000.0,0.00035455,14]
[313922502,1707825041045,-150.87929656,0.00035463,2]
[313922504,1707825041055,-250.29064748,0.00035463,2]
[313922506,1707825041064,-300.0,0.00035561,3]
[313922508,1707825041073,-157.95400096,0.00035575,2]
[313922510,1707825041083,-4912.90967468,0.00035611,10]
[313922512,1707825041093,-317.00077531,0.00035615,15]
[313922514,1707825041102,-625.35479675,0.00035615,15]
[313922517,1707825041112,-500.0,0.00035615,15]
[313922519,1707825041121,-195.70615103,0.00035615,15]
[313922521,1707825041131,-500.0,0.00035616,7]
[313922522,1707825041140,-500.0,0.00035616,14]
[313922525,1707825041149,-500.0,0.00035616,14]
[313922527,1707825041160,-223.02086186,0.00035616,14]
[313922528,1707825041169,-500.0,0.00035616,14]
[313922530,1707825041178,-500.0,0.00035616,14]
[313922532,1707825041188,-500.0,0.00035616,14]
[313922534,1707825041197,-500.0,0.00035616,14]
[313922536,1707825041206,-500.0,0.00035616,14]
[313922538,1707825041215,-500.0,0.00035616,14]
[313922540,1707825041224,-500.0,0.00035616,14]
[313922542,1707825041234,-500.0,0.00035616,14]
[313922544,1707825041243,-500.0,0.00035616,2]
[313922546,1707825041252,-500.0,0.00035616,2]
[313922548,1707825041262,-500.0,0.00035616,14]
[313922550,1707825041272,-500.0,0.00035616,14]
[313922552,1707825041281,-500.0,0.00035616,7]
[313922554,1707825041290,-500.0,0.00035616,7]
[313922557,1707825041299,-500.0,0.00035616,14]
[313922558,1707825041308,-500.0,0.00035616,14]
[313922560,1707825041317,-500.0,0.00035616,14]
[313922562,1707825041327,-500.0,0.00035616,14]
[313922564,1707825041337,-500.0,0.00035616,14]
[313922567,1707825041347,-500.0,0.00035616,14]
[313922568,1707825041356,-500.0,0.00035616,14]
[313922570,1707825041365,-500.0,0.00035616,14]
[313922572,1707825041375,-500.0,0.00035616,7]
[313922574,1707825041385,-500.0,0.00035616,7]
[313922575,1707825041394,-175.26370295,0.00035616,14]
[313922577,1707825041404,-500.0,0.00035616,14]
[313922579,1707825041413,-500.0,0.00035616,14]
[313922581,1707825041422,-500.0,0.00035616,14]
[313922583,1707825041431,-500.0,0.00035616,14]
[313922585,1707825041441,-500.0,0.00035616,14]
[313922587,1707825041451,-500.0,0.00035616,14]
[313922589,1707825041460,-461.69581788,0.00035616,14]
[313922591,1707825041469,-500.0,0.00035616,14]
[313922593,1707825041478,-308.61183286,0.00035616,14]
[313922595,1707825041487,-500.0,0.00035616,14]
[313922597,1707825041497,-500.0,0.00035616,14]
[313922599,1707825041505,-500.0,0.00035616,14]
[313922601,1707825041514,-500.0,0.00035616,14]
[313922603,1707825041523,-500.0,0.00035616,14]
[313922605,1707825041532,-500.0,0.00035616,14]
[313922607,1707825041541,-633.09615801,0.00035616,14]
[313922609,1707825041550,-287.37623972,0.00035616,14]
[313922611,1707825041559,-500.0,0.00035616,14]
[313922612,1707825041569,-500.0,0.00035616,14]
[313922614,1707825041578,-500.0,0.00035616,2]
[313922616,1707825041587,-500.0,0.00035616,14]
[313922619,1707825041597,-351.82,0.00035616,14]
[313922620,1707825041606,-582.57710656,0.00035616,14]
[313922622,1707825041615,-500.0,0.00035616,14]
[313922623,1707825041624,-216.86761908,0.00035616,14]
[313922624,1707825041634,-158.10243612,0.00035616,14]
[313922650,1707825042095,-341.89756388,0.00035616,14]
[313922652,1707825042104,-148.25347162,0.00035616,14]
[313922664,1707825042207,-351.74652838,0.00035616,14]
[313922666,1707825042218,-443.82,0.00035616,14]
[313922668,1707825042228,-383.75334695,0.00035616,14]
[313922670,1707825042240,-116.24665305,0.00035616,14]
[313922672,1707825042250,-135.1446794,0.00035616,14]
[313922674,1707825042262,-364.8553206,0.00035616,14]
[313922676,1707825042274,-500.0,0.00035616,14]
[313922678,1707825042284,-500.0,0.00035616,14]
[313922680,1707825042293,-407.81324044,0.00035616,14]
[313922747,1707825042873,-404.8584929,0.00035606,3]
[313923097,1707825045844,-314.36802219,0.00035183,4]
[313923099,1707825045854,-367.40863936,0.00035183,4]
[313923101,1707825045863,-226.4390502,0.00035183,4]
[313923103,1707825045874,-368.84187345,0.00035183,4]
[313923104,1707825045883,-217.20754709,0.00035605,4]
[313923105,1707825045891,-262.86141541,0.00035605,4]
[313923770,1707825062850,155.96772157,0.00026711,2]
[313923771,1707825066291,703.78899673,0.00029572,7]
[313923783,1707825257618,154.87609812,0.000176,2]
[313923790,1707826047124,-1325.29885839,0.00023434,2]
[313923798,1707826149115,-718.7552593,0.00023429,2]
[313923799,1707826149137,-5282.95746006,0.0002343,2]
[313923800,1707826149158,-330.86032515,0.0002343,2]
[313923801,1707826149178,-280.94108593,0.00023431,2]
[313923802,1707826149198,-537.82724361,0.00023431,2]
[313923803,1707826149219,-1963.02059646,0.00023472,2]
[313923804,1707826149242,-324.28960369,0.00023473,2]
[313923805,1707826149265,-249.73596354,0.00023473,2]
[313923806,1707826149285,-168.6358621,0.00023963,2]
[313923807,1707826149307,-3547.1013321,0.00023984,2]
[313923808,1707826149341,-24900.0,0.00024041,2]
[313923809,1707826149367,-250.0,0.00024199,2]
[313923810,1707826149391,-200.0,0.00025786,7]
[313923811,1707826149416,-191.218329,0.00027296,2]
[313923812,1707826149440,-194.01016011,0.000274,3]
[313923813,1707826149462,-567.67721481,0.000275,2]
[313923814,1707826149484,-280.0,0.00028365,15]
[313923815,1707826149505,-11100.85311126,0.000289,2]
[313923816,1707826152092,-296.0451629,0.00023428,2]
[313923817,1707826152113,-425.20097741,0.00023428,2]
[313923818,1707826158135,-56.79337344,0.00023428,2]
[313923819,1707826158155,-499.67343307,0.00023428,2]
[313923832,1707826231872,-38.15381054,0.00023428,2]
[313923833,1707826231884,-277.21213176,0.000289,2]
[313923834,1707826231893,-2021.341,0.0003,2]
[313923835,1707826231903,-293.0,0.0003,2]
[313923836,1707826231912,-377.464031,0.00030799,4]
[313923837,1707826231923,-7098.02345881,0.00030799,2]
[313923838,1707826231934,-7576.02616176,0.000308,45]
[313923839,1707826231944,-155.0,0.00031,2]
[313923842,1707826231992,-4912.90967468,0.00031038,10]
[313923844,1707826232002,-1813.87652904,0.00031678,4]
[313923846,1707826232012,-194.0101601,0.00031888,5]
[313923848,1707826232022,-183.3932041,0.00031898,2]
[313923850,1707826232030,-45.30696602,0.00031951,2]
[313923851,1707826232042,-130.19747958,0.00031951,2]
[313923852,1707826232051,-2768.93,0.00031988,3]
[313923853,1707826232060,-3889.61094574,0.00031988,3]
[313923901,1707826238333,-1390.55905426,0.00031988,3]
[313923902,1707826238343,-3145.01343744,0.00031988,3]
[313923903,1707826238355,-1255.13656256,0.00031988,3]
[313923904,1707826238365,-1893.06959706,0.00031998,4]
[313923905,1707826238374,-175.19728346,0.00031998,4]
[313923906,1707826238384,-155.09094064,0.00031998,4]
[313923907,1707826238394,-22676.17480278,0.00031998,4]
[313923908,1707826238403,-2821.34888369,0.00031998,4]
[313923909,1707826238412,-661.43387756,0.00031998,4]
[313923910,1707826238421,-676.79051147,0.00031998,2]
[313923911,1707826238432,-256.22157654,0.00031998,4]
[313923912,1707826238441,-212.61306538,0.00031998,4]
[313923913,1707826238451,-155.80728857,0.00031998,4]
[313923914,1707826238460,-1839.20467693,0.00031998,4]
[313923915,1707826238470,-154.93802479,0.00031998,4]
[313923916,1707826238479,-238.33145777,0.00031998,4]
[313923917,1707826238489,-8150.66087794,0.00031998,4]
[313923918,1707826238499,-535.644987,0.00031998,4]
[313923919,1707826238509,-261.22503123,0.00031998,4]
[313923920,1707826238518,-770.48214614,0.00031998,4]
[313923921,1707826238528,-4361.74159245,0.00031998,4]
[313923922,1707826238539,-427.63934733,0.00031998,4]
[313923923,1707826238549,-262.41474753,0.00031998,4]
[313923924,1707826238558,-1589.15273925,0.00031998,4]
[313923925,1707826238567,-313.87846336,0.00031998,4]
[313923926,1707826238576,-3282.88144527,0.00031998,4]
[313923927,1707826238585,-1505.73398173,0.00031998,4]
[313923928,1707826238595,-579.06559845,0.00031998,4]
[313923929,1707826238604,-424.39633387,0.00031998,4]
[313923930,1707826238615,-352.9812437,0.00031998,4]
[313923931,1707826238625,-678.84385158,0.00031998,4]
[313923932,1707826238636,-212.82571171,0.00031998,4]
[313923933,1707826238645,-540.64481469,0.00031999,4]
[313923934,1707826238655,-323.25976255,0.00031999,4]
[313923935,1707826238664,-155.34758793,0.00031999,4]
[313923936,1707826238673,-220.4797371,0.00031999,4]
[313923937,1707826238682,-155.30958796,0.00031999,4]
[313923938,1707826238693,-19847.76391395,0.00031999,4]
[313923939,1707826238703,-317.00077531,0.00031999,7]
[313923940,1707826238712,-625.35479675,0.00031999,7]
[313923941,1707826238722,-500.0,0.00031999,7]
[313923942,1707826238733,-195.70615103,0.00031999,7]
[313923943,1707826238742,-168.91309946,0.00031999,7]
[313923944,1707826238752,-418437.3222498,0.00032,15]
[313923945,1707826238766,-966.91477324,0.00032,15]
[313923946,1707826238780,-298.68284225,0.00032,15]
[313923959,1707826241243,-8544.36707993,0.00032,15]
[313923960,1707826241296,-12942.31520198,0.00032,15]
[313923961,1707826241308,-249.993024,0.00032,15]
[313924012,1707826243045,-0.03643651,0.0003199,3]
[313924014,1707826243056,-3666.75356349,0.0003199,3]
[313924016,1707826243068,-1712.56481496,0.00032,15]
[313924044,1707827242081,-1347.2,0.00020716,2]
[313924045,1707827345100,-280.94108593,0.0002071,2]
[313924046,1707827345122,-641.04413106,0.00020711,2]
[313924047,1707827345148,-1472.74993101,0.00020711,2]
[313924048,1707827345170,-273.45700158,0.00020712,2]
[313924049,1707827345190,-7989.76732382,0.00020713,2]
[313924050,1707827345212,-5282.95746006,0.00020714,2]
[313924051,1707827345233,-16142.373192,0.00020716,2]
[313924052,1707827345254,-192.54112914,0.00021476,2]
[313924053,1707827345275,-849.453785,0.00021576,2]
[313924054,1707827345296,-24900.0,0.00021686,2]
[313924055,1707827345317,-743.626666,0.00021808,2]
[313924056,1707827345336,-294.40214372,0.00022,4]
[313924057,1707827345357,-446.41615068,0.00023428,2]
[313924058,1707827348094,-1551.88610802,0.00023428,2]
[313924059,1707827348118,-438.04574759,0.00023473,2]
[313924060,1707827348139,-200.0,0.0002416,7]
[313924061,1707827348158,-200.0,0.00025479,2]
[313924062,1707827348179,-280.0,0.00026576,15]
[313924063,1707827357364,1472.74993101,0.00023999,2]
[313924066,1707827366126,-300.87929656,0.00029234,15]
[313924067,1707827377367,1472.74993101,0.00023999,2]
[313924069,1707827403358,1472.74993101,0.00023999,2]
[313924070,1707827421380,1472.74993101,0.00023999,2]
[313924127,1707827434747,-309.61304631,0.000299,2]
[313924128,1707827434761,-472.9869167,0.000299,2]
[313924129,1707827434781,-377.464031,0.00031899,4]
[313924130,1707827434794,-4759.28052978,0.00031899,2]
[313924169,1707827438463,-2338.74292903,0.00031899,2]
[313924171,1707827438472,-1470.89532133,0.000319,2]
[313924176,1707827438518,-1003.7393826,0.000319,2]
[313924179,1707827438529,-3838.04475063,0.000319,2]
[313924448,1707827441359,1472.74993101,0.00023999,2]
[313924449,1707827441406,-1826.06850077,0.000319,2]
[313924450,1707827441419,-2763.22813518,0.000319,2]
[313924451,1707827441431,-2785.82,0.000319,2]
[313924454,1707827441461,-6499.99999996,0.000319,2]
[313924650,1707827443224,-4261.0,0.000319,2]
[313924652,1707827443235,-3280.96952151,0.000319,2]
[313924654,1707827443247,-1566.0019574,0.000319,2]
[313924656,1707827443255,-2047.88507585,0.00031998,4]
[313924755,1707827446182,-558.9895514,0.00031998,4]
[313924756,1707827446191,-160.8004486,0.00031998,4]
[313924757,1707827446757,-378.08006278,0.00031998,4]
[313924758,1707827446766,-356.1656285,0.00031998,2]
[313924759,1707827446776,-386.99627944,0.00031998,4]
[313924760,1707827446785,-642.05980148,0.00031998,4]
[313924761,1707827446794,-500.0,0.00031999,2]
[313924762,1707827446803,-500.0,0.00031999,2]
[313924763,1707827446812,-499.70889139,0.00031999,2]
[313924764,1707827446821,-43408.30344027,0.00032,15]
[313924765,1707827457516,2604.81475644,0.00023999,2]
[313924766,1707827457539,221.960543,0.00023999,2]
[313924767,1707827473362,1472.74993101,0.00023999,2]
[313924768,1707827491363,370.67158131,0.00023999,2]
[313924769,1707827891877,166.6666664,0.00020544,2]
[313924770,1707827903450,20000.0,0.00017999,5]
[313924771,1707827935433,10532.86961262,0.00017999,5]
[313924772,1707827964694,10331.0282043,0.00017999,2]
[313924773,1707827966471,381.0578541,0.0002057,2]
[313924774,1707827969941,154.86062544,0.00017999,2]
[313924775,1707827978877,3836.5303968,0.00017999,2]
[313924776,1707827983949,155.0356263,0.00017999,2]
[313924777,1707828043567,813.5683848,0.00020541,2]
[313924779,1707828084674,734.590077,0.0002054,2]
[313924780,1707828163747,3545.34170551,0.00020562,2]
[313924781,1707828176062,1016.0,0.00020467,2]
[313924782,1707828316441,-199.94018666,0.00018972,2]
[313924783,1707828316465,-1298.53681492,0.00018972,2]
[313924784,1707828316488,-154.86062544,0.00018973,2]
[313924785,1707828316510,-280.94108593,0.00018973,2]
[313924786,1707828316532,-154.86062544,0.00018973,2]
[313924787,1707828316555,-60.86066161,0.00018974,2]
[313924788,1707828393708,-1747.38022649,0.00018967,2]
[313924789,1707828393731,-2608.46910477,0.00018967,2]
[313924790,1707828393753,-154.86062544,0.00018967,2]
[313924791,1707828393776,-481.99435085,0.00018968,2]
[313924792,1707828393801,-181.70308588,0.00018969,2]
[313924793,1707828393821,-154.86062544,0.00018969,2]
[313924794,1707828393840,-5282.95746006,0.00018969,2]
[313924795,1707828393861,-641.04413106,0.0001897,2]
[313924796,1707828393882,-7989.76732382,0.0001897,2]
[313924797,1707828393902,-250.0,0.00018975,2]
[313924798,1707828393934,197.96306619,0.00018966,2]
[313924799,1707828439084,-75.49393539,0.00018966,2]
[313924800,1707828439106,-276.95930983,0.00018974,2]
[313924801,1707828439129,-590.62215999,0.00019003,2]
[313924802,1707828439150,-686.8990302,0.00019004,2]
[313924803,1707828439170,-6115.08830306,0.00019775,2]
[313924804,1707828439190,-1964.294613,0.00019776,2]
[313924805,1707828439212,-200.0,0.00019918,2]
[313924806,1707828439232,-681.54066331,0.0002,2]
[313924807,1707828439251,-1202.94239727,0.0002046,2]
[313924808,1707828439273,-324.33055598,0.00020461,2]